[Event "Croatian 1A League 2022"]
[Site "Porec"]
[Date "2022.09.26"]
[Round "3.1"]
[White "Cheparinov, Ivan"]
[Black "Saric, Ivan"]
[Result "1-0"]
[ECO "B33"]
[WhiteElo "2686"]
[BlackElo "2668"]
[Annotator "TA"]
[PlyCount "67"]
[EventDate "2022.09.24"]
[EventType "team-tourn"]
[EventCountry "CRO"]
[SourceTitle "playchess.com"]
[Source "ChessBase"]
[SourceQuality "1"]
[TimeControl "40/5400+30:1800+30"]

{[%evp 15,67,12,7,6,23,28,28,25,29,2,14,14,41,38,35,14,80,0,77,70,148,121,120,116,221,245,247,237,256,240,217,214,166,176,237,248,239,247,223,75,141,167,160,169,162,160,157,164,252,253,271,277,357,347]} 1. e4 {[%emt 0:01:24]} c5 {[%emt 0:00:06]} 2. Nf3 {[%emt 0:00:04]} Nc6 {[%emt 0:00:23]} 3. d4 {[%emt 0:00:05]} cxd4 {[%emt 0:00:03]} 4. Nxd4 {[%emt 0:00:04]} Nf6 {[%emt 0:00:05]} 5. Nc3 {[%emt 0:00:04]} e5 {[%emt 0:00:51]} 6. Ndb5 {[%emt 0:00:05]} d6 {[%emt 0:00:03]} 7. Nd5 {[%emt 0:00:06]} Nxd5 {[%emt 0:00:03]} 8. exd5 {[%emt 0:00:06]} Ne7 {[%emt 0:02:37]} 9. a4 {[%emt 0:03:36] B33: Sicilian: Pelikan and Sveshnikov Variations.} Nf5 {[%emt 0:21:47]} 10. Bd3 {[%emt 0:01:55] [#]} g6 $146 {[%emt 0:01:34]} ({Predecessor:} 10... a6 11. Nc3 Be7 12. a5 O-O 13. O-O Nh4 14. g3 Ng6 15. h4 f5 16. h5 Nh8 {½-½ (80) Popov,V (2129)-Wedel,L (2104) ICCF email 2013}) 11. O-O {[%emt 0:02:12] White has an edge.} Bg7 {[%emt 0:00:43]} 12. c4 {[%emt 0:05:43]} a6 {[%emt 0:01:33]} 13. Nc3 {[%emt 0:00:43]} a5 {[%emt 0:00:20]} 14. Kh1 {[%emt 0:07:33]} O-O {[%emt 0:00:21]} 15. f4 {[%emt 0:02:30]} Qb6 {[%emt 0:08:08]} (15... Nh6 $11 {remains equal.}) 16. Ne4 {[%emt 0:08:33]} (16. g4 $1 $16 {[%cal Rg4f5]} Ne3 17. Bxe3 Qxe3 18. f5) 16... exf4 {[%emt 0:17:42]} (16... Nd4 $11) 17. Bxf4 $16 {[%emt 0:01:29]} Qxb2 {[%emt 0:04:29]} ({Black should play} 17... Bd7 $14) 18. Rb1 {[%emt 0:08:07]} Qd4 {[%emt 0:00:04]} 19. Qe2 {[%emt 0:07:41] Against Ne3. White is more active.} h5 {[%emt 0:03:18]} (19... b6 $16 {was called for.}) 20. Nxd6 $18 {[%emt 0:00:59]} Nxd6 {[%emt 0:01:18]} 21. Bxd6 {[%emt 0:00:07]} Bg4 {[%emt 0:09:06]} 22. Qc2 {[%emt 0:00:40]} Rfd8 {[%emt 0:00:03]} 23. Bc7 {[%emt 0:09:35]} Re8 {[%emt 0:00:08]} 24. Rxb7 {[%emt 0:04:11] Black must now prevent Bb6.} Re3 {[%emt 0:04:31]} (24... Ra7 $142 25. Rxa7 Qxa7) 25. Rb3 {[%emt 0:00:11] aiming for Bb6.} Ra6 {[%emt 0:00:24] Against Bb6} 26. Bf4 $1 {[%emt 0:14:19]} Re8 {[%emt 0:01:59]} 27. h3 {[%emt 0:00:28]} (27. Bg5 $1 $18 {is the precise move to win.}) 27... Rf6 {[%emt 0:02:09] [#]} (27... Bd7 $142 28. Qf2 Qxf2 29. Rxf2 Bd4) 28. Qf2 $1 $16 {[%emt 0:01:02]} Qxf2 {[%emt 0:01:49]} 29. Rxf2 {[%emt 0:00:03]} Bd1 {[%emt 0:04:42] [#]} 30. Rb1 $1 $36 {[%emt 0:02:52][%mdl 2048] White has strong initiative.} (30. Rb5 Re1+ 31. Kh2 Rxf4 32. Rxf4 (32. Rb8+ $2 Kh7 $19) 32... Be5 $11) 30... Bxa4 {[%emt 0:01:13]} 31. c5 {[%emt 0:01:23]} h4 {[%emt 0:12:19]} (31... g5 $142) 32. Rff1 $18 {[%emt 0:00:42]} Bf8 {[%emt 0:00:23]} 33. d6 {[%emt 0:01:33]} Bc6 {[%emt 0:00:07]} 34. Rb6 {[%emt 0:00:43] Weighted Error Value: White=0.12 (very precise) /Black=0.33} 1-0

[Event "Croatian 1A League 2022"]
[Site "Porec"]
[Date "2022.09.26"]
[Round "3.2"]
[White "Banusz, Tamas"]
[Black "Hracek, Zbynek"]
[Result "1/2-1/2"]
[ECO "D02"]
[WhiteElo "2622"]
[BlackElo "2556"]
[Annotator "ChessBase"]
[PlyCount "78"]
[EventDate "2022.09.24"]
[EventType "team-tourn"]
[EventCountry "CRO"]
[SourceTitle "playchess.com"]
[Source "ChessBase"]
[SourceQuality "1"]
[TimeControl "40/5400+30:1800+30"]

1. d4 {[%emt 0:00:03]} d5 {[%emt 0:00:50]} 2. Nf3 {[%emt 0:00:10]} Nf6 {[%emt 0:00:14]} 3. g3 {[%emt 0:00:08]} c5 {[%emt 0:02:51]} 4. Bg2 {[%emt 0:00:19]} cxd4 {[%emt 0:00:30]} 5. O-O {[%emt 0:00:14]} Nc6 {[%emt 0:00:31]} 6. Nxd4 {[%emt 0:00:49]} e5 {[%emt 0:00:34]} 7. Nxc6 {[%emt 0:00:21]} bxc6 {[%emt 0:00:05]} 8. c4 {[%emt 0:00:13]} Be6 {[%emt 0:00:05]} 9. Nc3 {[%emt 0:02:38]} Rc8 {[%emt 0:01:54]} 10. cxd5 {[%emt 0:03:30]} cxd5 {[%emt 0:00:31]} 11. Qa4+ {[%emt 0:00:06]} Qd7 {[%emt 0:00:06]} 12. Qxd7+ {[%emt 0:00:06]} Kxd7 {[%emt 0:00:05]} 13. Rd1 {[%emt 0:00:08]} Bc5 {[%emt 0:00:20]} 14. Na4 {[%emt 0:00:25]} Be7 {[%emt 0:00:13]} 15. Bg5 {[%emt 0:02:28]} Rhd8 {[%emt 0:17:40]} 16. Bxf6 {[%emt 0:05:39]} Bxf6 {[%emt 0:00:05]} 17. Bxd5 {[%emt 0:00:18]} Ke7 {[%emt 0:07:10]} 18. Bxe6 {[%emt 0:09:00]} Rxd1+ {[%emt 0:00:48]} 19. Rxd1 {[%emt 0:00:06]} Kxe6 {[%emt 0:00:03]} 20. Nc3 {[%emt 0:05:02]} Be7 {[%emt 0:00:16]} 21. Kf1 {[%emt 0:03:30]} f5 {[%emt 0:01:47]} 22. e3 {[%emt 0:02:37]} Bb4 {[%emt 0:08:08]} 23. Rc1 {[%emt 0:06:01]} Bxc3 {[%emt 0:01:11]} 24. bxc3 {[%emt 0:19:42]} Rc4 {[%emt 0:02:22]} 25. Rb1 {[%emt 0:03:03]} Ra4 {[%emt 0:13:31]} 26. Rb2 {[%emt 0:03:24]} g5 {[%emt 0:03:57]} 27. Rb7 {[%emt 0:05:02]} g4 {[%emt 0:13:16]} 28. Rxh7 {[%emt 0:03:00]} Rxa2 {[%emt 0:00:06]} 29. c4 {[%emt 0:07:37]} Rc2 {[%emt 0:01:33]} 30. Rh6+ {[%emt 0:01:03]} Kf7 {[%emt 0:02:33]} 31. Rh7+ {[%emt 0:00:24]} Ke6 {[%emt 0:00:57]} 32. Rxa7 {[%emt 0:00:04]} Rxc4 {[%emt 0:00:02]} 33. Ra6+ {[%emt 0:01:35]} Kf7 {[%emt 0:00:06]} 34. Kg2 {[%emt 0:00:22]} f4 {[%emt 0:09:29]} 35. gxf4 {[%emt 0:02:02]} exf4 {[%emt 0:00:04]} 36. Rh6 {[%emt 0:05:39]} Re4 {[%emt 0:00:23]} 37. exf4 {[%emt 0:00:25]} Rxf4 {[%emt 0:00:05]} 38. Kf1 {[%emt 0:01:03]} Kg7 {[%emt 0:00:48]} 39. Rd6 {[%emt 0:00:14]} Re4 {[%emt 0:01:16]} 1/2-1/2

[Event "Croatian 1A League 2022"]
[Site "Porec"]
[Date "2022.09.26"]
[Round "3.3"]
[White "Leventic, Ivan"]
[Black "Balogh, Csaba"]
[Result "0-1"]
[ECO "B40"]
[WhiteElo "2384"]
[BlackElo "2583"]
[Annotator "RC"]
[PlyCount "50"]
[EventDate "2022.09.24"]
[EventType "team-tourn"]
[EventCountry "CRO"]
[SourceTitle "playchess.com"]
[Source "ChessBase"]
[SourceQuality "1"]
[TimeControl "40/5400+30:1800+30"]

1. e4 {[%emt 0:00:06]} c5 {[%emt 0:00:22]} 2. Nf3 {[%emt 0:00:18]} e6 {[%emt 0:00:09]} 3. c4 {[%emt 0:01:31]} Nc6 {[%emt 0:00:34]} 4. Nc3 {[%emt 0:00:28]} Nd4 {[%emt 0:00:14]} 5. Bd3 {[%emt 0:00:26]} Ne7 {[%emt 0:00:55]} 6. Nxd4 {[%emt 0:01:00]} cxd4 {[%emt 0:00:07]} 7. Ne2 {[%emt 0:00:13]} Nc6 {[%emt 0:00:37]} 8. Bc2 {[%emt 0:00:17]} a6 {[%emt 0:01:04]} 9. O-O {[%emt 0:05:34]} b5 {[%emt 0:01:44]} 10. Bb3 {[%emt 0:07:10]} d3 {[%emt 0:13:57]} 11. Nf4 {[%emt 0:02:05]} Ne5 {[%emt 0:01:25]} 12. cxb5 {[%emt 0:03:24]} axb5 {[%emt 0:00:35]} 13. Qh5 {[%emt 0:04:06]} Qf6 {[%emt 0:01:49]} 14. Nh3 {[%emt 0:01:54]} g6 {[%emt 0:05:21]} 15. Qd1 {[%emt 0:01:33]} g5 {[%emt 0:04:56]} 16. f4 {[%emt 0:14:47]} Bc5+ {[%emt 0:03:22]} 17. Kh1 {[%emt 0:01:31]} gxf4 {[%emt 0:00:07]} 18. Nxf4 {[%emt 0:00:51]} Qg5 {[%emt 0:06:56]} 19. Qh5 {[%emt 0:11:58]} Qxh5 {[%emt 0:02:55]} 20. Nxh5 {[%emt 0:00:16]} Bb7 {[%emt 0:00:06]} 21. Bd1 {[%emt 0:01:20]} Ke7 {[%emt 0:00:40]} 22. Bf3 {[%emt 0:00:18]} Rhg8 {[%emt 0:11:43]} 23. b4 {[%emt 0:03:05]} Bd4 {[%emt 0:00:50]} 24. Rb1 {[%emt 0:00:08]} Rxa2 {[%emt 0:02:33]} 25. Rb3 {[%emt 0:01:08]} Ra1 {[%emt 0:01:44]} 0-1

[Event "Croatian 1A League 2022"]
[Site "Porec"]
[Date "2022.09.26"]
[Round "3.4"]
[White "Kuljasevic, Davorin"]
[Black "Zivkovic, Vjekoslav"]
[Result "1/2-1/2"]
[ECO "D27"]
[WhiteElo "2560"]
[BlackElo "2364"]
[Annotator "TA"]
[PlyCount "218"]
[EventDate "2022.09.24"]
[EventType "team-tourn"]
[EventCountry "CRO"]
[SourceTitle "playchess.com"]
[Source "ChessBase"]
[SourceQuality "1"]
[TimeControl "40/5400+30:1800+30"]

{[%evp 20,218,31,23,55,46,43,39,50,28,27,27,33,29,29,18,24,27,49,27,30,27,18,16,18,16,16,16,16,16,19,21,28,28,27,21,22,14,14,13,19,13,23,23,16,15,19,16,18,18,27,22,29,19,19,19,63,19,19,0,74,19,20,20,22,17,17,17,17,17,17,17,21,21,21,22,22,22,22,22,22,22,22,0,23,22,22,17,17,17,40,17,40,22,40,40,40,40,40,22,47,47,96,96,104,104,100,96,104,104,89,89,104,88,90,55,64,55,104,104,104,104,104,55,104,55,55,48,48,48,48,23,48,48,48,0,30,0,48,22,22,22,22,22,22,22,23,22,22,22,22,22,22,22,22,22,22,22,22,22,22,22,22,22,22,8,22,22,22,22,22,8,8,0,22,22,22,8,22,22,22,22,22,22,22,8,8,8,8,8,8,8,8,8,8,8,8,8,8,8,8]} 1. d4 {[%emt 0:00:04]} d5 {[%emt 0:00:03]} 2. c4 {[%emt 0:00:10]} dxc4 {[%emt 0:00:03]} 3. Nf3 {[%emt 0:00:09]} Nf6 {[%emt 0:00:06]} 4. e3 {[%emt 0:00:11]} e6 {[%emt 0:00:20]} 5. Bxc4 {[%emt 0:00:11]} c5 {[%emt 0:00:08]} 6. O-O {[%emt 0:00:17]} a6 {[%emt 0:00:07]} 7. Bb3 {[%emt 0:02:27]} Nc6 {[%emt 0:10:56]} 8. Nc3 {[%emt 0:00:40]} Be7 {[%emt 0:07:22]} 9. dxc5 {[%emt 0:00:46]} Qxd1 {[%emt 0:00:49]} 10. Rxd1 {[%emt 0:00:05]} Bxc5 {[%emt 0:00:07]} 11. Bd2 {[%emt 0:00:31]} Ke7 {[%emt 0:02:48] D27: Queen's Gambit Accepted: Classical main line: 7 e4!? and 7 a4.} 12. Rac1 {[%emt 0:08:47]} Ba7 {[%emt 0:02:56]} 13. Be1 {[%emt 0:06:05]} Bd7 {[%emt 0:24:46] White is slightly better.} 14. Na4 {[%emt 0:01:39]} (14. e4 {looks sharper.} Rhd8 15. e5 Nd5 16. Nxd5+ exd5 17. Bxd5 Be6 18. Bxc6 Rxd1 19. Rxd1 bxc6 20. b3) 14... Rhd8 {[%emt 0:04:24]} 15. Nc5 {[%emt 0:01:16]} Bxc5 {[%emt 0:02:01]} 16. Rxc5 {[%emt 0:00:03]} Be8 {[%emt 0:00:35]} 17. Rdc1 {[%emt 0:02:36]} Ne4 {[%emt 0:02:18]} 18. R5c2 {[%emt 0:04:58] [#]} Bd7 $146 {[%emt 0:05:37]} ({Predecessor:} 18... f6 19. Nd2 Nd6 20. Nc4 Nxc4 21. Rxc4 e5 22. Rc5 Bf7 23. Bxf7 Kxf7 24. b4 Rd7 {0-1 (35) Nielsen,P (2697)-Nakamura,H (2715) Oslo 2009}) 19. Bc4 {[%emt 0:08:40]} (19. Ba4 $5 {[%cal Ra4c6]}) 19... Nd6 {[%emt 0:01:16]} 20. Be2 {[%emt 0:10:22]} Rac8 {[%emt 0:04:47]} 21. Bc3 {[%emt 0:11:47]} f6 {[%emt 0:00:51]} 22. Nd4 {[%emt 0:08:43]} Nxd4 {[%emt 0:03:52]} 23. Bxd4 {[%emt 0:00:15] A strong pair of Bishops.} Rxc2 {[%emt 0:01:12]} 24. Rxc2 {[%emt 0:00:02]} Rc8 {[%emt 0:00:29]} 25. Rxc8 {[%emt 0:03:15]} Nxc8 $11 {[%emt 0:00:51][%mdl 4096] Endgame KBB-KBN} 26. Bd3 {[%emt 0:03:57]} Kf7 {[%emt 0:08:50]} 27. f4 {[%emt 0:08:27]} (27. Bxh7 $2 g6 28. Bc3 Kg7 $19) 27... Bc6 {[%emt 0:03:06]} 28. Bc5 {[%emt 0:00:49]} ({Don't go for} 28. Bxh7 $2 g6 29. Bg8+ Kxg8 $19) 28... f5 {[%emt 0:01:19]} 29. h3 {[%emt 0:01:06]} Bd5 {[%emt 0:02:11]} 30. a3 {[%emt 0:03:17]} h5 {[%emt 0:02:11]} 31. Kf2 {[%emt 0:03:00]} Ne7 {[%emt 0:00:06]} 32. Be2 {[%emt 0:03:14]} g6 {[%emt 0:01:06]} 33. g4 {[%emt 0:00:31]} hxg4 {[%emt 0:00:18]} 34. hxg4 {[%emt 0:00:02]} Be4 {[%emt 0:04:12]} 35. Kg3 {[%emt 0:03:18]} Nd5 {[%emt 0:01:53]} 36. gxf5 {[%emt 0:00:24]} exf5 {[%emt 0:00:57]} 37. Bc4 {[%emt 0:04:20]} Bh1 {[%emt 0:02:15]} 38. Kh2 {[%emt 0:01:12]} Be4 {[%emt 0:00:08]} 39. Kg3 {[%emt 0:00:03]} (39. Kh3 $11) 39... Bh1 $16 {[%emt 0:00:04]} 40. a4 {[%emt 0:00:00]} (40. Bd4 $16) 40... Kg7 $11 {[%emt 0:00:00]} 41. Kh4 {[%emt 0:02:12]} Nc7 $1 {[%emt 0:21:09]} 42. Bd6 {[%emt 0:03:47]} Bd5 {[%emt 0:00:10]} 43. Be2 {[%emt 0:00:51]} Ne6 {[%emt 0:00:07]} 44. a5 {[%emt 0:00:55]} Kf7 {[%emt 0:00:09]} 45. b4 {[%emt 0:03:50]} Bc6 {[%emt 0:00:51]} 46. Bc4 {[%emt 0:01:10]} Kf6 {[%emt 0:00:29]} 47. Kg3 {[%emt 0:03:13]} Be4 {[%emt 0:00:43]} 48. Be5+ {[%emt 0:04:21]} Ke7 {[%emt 0:00:09]} 49. Kh4 {[%emt 0:00:53]} Kd7 {[%emt 0:01:06]} 50. Bf6 {[%emt 0:00:40]} Kd6 {[%emt 0:00:13]} 51. Be5+ {[%emt 0:01:01]} Kd7 {[%emt 0:00:04]} 52. Bb3 {[%emt 0:02:21]} Bc6 {[%emt 0:00:32]} 53. Bc2 {[%emt 0:00:32]} Bd5 {[%emt 0:00:01]} 54. Kg3 {[%emt 0:00:55]} Bc6 {[%emt 0:00:05]} 55. Kf2 {[%emt 0:00:47]} Bd5 {[%emt 0:00:53]} 56. Ke2 {[%emt 0:00:21]} Be4 {[%emt 0:00:23]} 57. Ba4+ {[%emt 0:01:12]} Bc6 {[%emt 0:00:54]} 58. Bb3 {[%emt 0:00:18]} Be4 {[%emt 0:00:24]} 59. Bf6 {[%emt 0:01:28]} Kd6 {[%emt 0:00:13]} 60. Kd2 {[%emt 0:00:24]} Bd5 {[%emt 0:00:11] [#]} (60... Bc6 $14) 61. Be7+ $1 $16 {[%emt 0:06:25]} Kc6 {[%emt 0:00:01]} 62. Ba4+ {[%emt 0:00:10]} b5 {[%emt 0:00:00]} 63. axb6+ $1 {[%emt 0:00:21]} Kxb6 {[%emt 0:00:02]} 64. Be8 {[%emt 0:00:14]} a5 {[%emt 0:03:48]} 65. bxa5+ {[%emt 0:00:12]} ({Much less strong is} 65. Bxg6 axb4 66. Bxb4 (66. Bxf5 Nc5 $16) 66... Be4 $16) 65... Kxa5 {[%emt 0:00:01]} 66. Bxg6 {[%emt 0:00:11]} Be4 {[%emt 0:00:00]} 67. Be8 {[%emt 0:02:27]} Kb6 {[%emt 0:00:22]} 68. Kc3 {[%emt 0:01:55]} Kc7 {[%emt 0:08:08]} (68... Nc7 $14 69. Bd8 Kb7) 69. Ba4 {[%emt 0:00:22]} Kc8 {[%emt 0:00:57]} 70. Bd6 {[%emt 0:01:55]} Kd8 {[%emt 0:00:19]} 71. Kd2 {[%emt 0:00:25]} (71. Kc4 $16) 71... Ng7 {[%emt 0:01:27]} (71... Nc7 $1 $14) 72. Ke2 {[%emt 0:00:34]} ({White should play} 72. Ba3 $16) 72... Ne8 {[%emt 0:00:41]} 73. Bc5 {[%emt 0:00:37]} Nf6 $1 {[%emt 0:00:05]} 74. Kf2 {[%emt 0:00:15]} Bd5 {[%emt 0:01:07] [#] ...Ne4+ is the strong threat.} 75. Bb4 {[%emt 0:00:39]} Ne4+ {[%emt 0:00:06]} 76. Kg1 {[%emt 0:00:28]} Nf6 {[%emt 0:00:21]} 77. Kf2 {[%emt 0:00:54]} Ne4+ {[%emt 0:00:06]} 78. Kg1 {[%emt 0:00:15]} Nf6 $1 {[%emt 0:00:00]} 79. Bb5 {[%emt 0:00:07]} Ng4 {[%emt 0:01:23]} 80. Bc5 {[%emt 0:00:19]} Be4 {[%emt 0:00:06]} 81. Kf1 {[%emt 0:00:17]} Kc7 {[%emt 0:00:06]} 82. Ke2 {[%emt 0:00:15]} Bc6 {[%emt 0:00:32]} 83. Bc4 {[%emt 0:00:21]} Be4 {[%emt 0:00:13] The position is equal.} 84. Be6 {[%emt 0:00:49]} Kc6 {[%emt 0:00:32]} 85. Ba3 {[%emt 0:01:20]} Kc7 {[%emt 0:00:08]} 86. Kd2 {[%emt 0:00:31]} Kc6 {[%emt 0:00:00]} 87. Be7 {[%emt 0:00:18]} Kc7 {[%emt 0:00:02]} 88. Bc5 {[%emt 0:01:10]} Kc6 {[%emt 0:00:01]} 89. Ba7 {[%emt 0:00:44]} Kd6 {[%emt 0:00:11]} 90. Bc8 {[%emt 0:00:26]} Ke7 {[%emt 0:01:01]} 91. Kc3 {[%emt 0:00:21]} Kf7 {[%emt 0:00:02]} 92. Kd4 {[%emt 0:00:18]} Kf6 {[%emt 0:00:21]} 93. Bb6 {[%emt 0:00:19]} Ke7 {[%emt 0:01:20]} 94. Bc5+ {[%emt 0:00:34]} Kf6 {[%emt 0:00:04]} 95. Kc4 {[%emt 0:00:16]} Kg6 {[%emt 0:00:58]} 96. Kd4 {[%emt 0:00:52]} Kf6 {[%emt 0:00:34]} 97. Ba3 {[%emt 0:01:21]} Kg6 {[%emt 0:00:18]} 98. Bd7 {[%emt 0:00:30]} Kf7 {[%emt 0:01:26]} 99. Bb4 {[%emt 0:00:07]} Kf6 {[%emt 0:00:34]} 100. Bc5 {[%emt 0:00:05]} Kf7 {[%emt 0:00:09]} 101. Kc4 {[%emt 0:00:13]} Nf6 {[%emt 0:00:12]} 102. Bc8 {[%emt 0:00:20]} Ng4 {[%emt 0:02:36]} 103. Bd4 {[%emt 0:00:08]} Kg6 {[%emt 0:00:06]} 104. Be6 {[%emt 0:00:44]} Kh5 {[%emt 0:00:13]} 105. Bc5 {[%emt 0:00:58]} Kh4 {[%emt 0:00:04]} 106. Kd4 {[%emt 0:00:25]} Kg3 {[%emt 0:00:15]} 107. Bd5 {[%emt 0:01:33]} Bxd5 {[%emt 0:00:35]} 108. Kxd5 {[%emt 0:00:01] Strongly threatening Ke6.} Nf2 {[%emt 0:00:27]} 109. Bd4 {[%emt 0:00:28]} Kg4 {[%emt 0:00:03] Weighted Error Value: White=0.08 (flawless) /Black=0.05 (flawless)} 1/2-1/2

[Event "Croatian 1A League 2022"]
[Site "Porec"]
[Date "2022.09.26"]
[Round "3.5"]
[White "Medak, Bojan"]
[Black "Jovanic, Ognjen"]
[Result "1/2-1/2"]
[ECO "A13"]
[WhiteElo "2353"]
[BlackElo "2507"]
[Annotator "RC"]
[PlyCount "53"]
[EventDate "2022.09.24"]
[EventType "team-tourn"]
[EventCountry "CRO"]
[SourceTitle "playchess.com"]
[Source "ChessBase"]
[SourceQuality "1"]
[TimeControl "40/5400+30:1800+30"]

1. c4 {[%emt 0:00:13]} e6 {[%emt 0:00:28]} 2. Nf3 {[%emt 0:01:19]} d5 {[%emt 0:01:32]} 3. g3 {[%emt 0:01:11]} Nf6 {[%emt 0:00:50]} 4. Bg2 {[%emt 0:00:35]} d4 {[%emt 0:00:51]} 5. e3 {[%emt 0:01:29]} c5 {[%emt 0:01:21]} 6. b4 {[%emt 0:02:46]} dxe3 {[%emt 0:05:07]} 7. fxe3 {[%emt 0:00:07]} cxb4 {[%emt 0:00:33]} 8. O-O {[%emt 0:01:08]} Be7 {[%emt 0:06:47]} 9. d4 {[%emt 0:04:49]} O-O {[%emt 0:00:19]} 10. Bb2 {[%emt 0:11:52]} Nbd7 {[%emt 0:08:20]} 11. a3 {[%emt 0:02:11]} a5 {[%emt 0:09:04]} 12. axb4 {[%emt 0:10:20]} Bxb4 {[%emt 0:00:13]} 13. Na3 {[%emt 0:00:17]} e5 {[%emt 0:16:49]} 14. Nb5 {[%emt 0:04:28]} exd4 {[%emt 0:11:26]} 15. exd4 {[%emt 0:09:46]} Ng4 {[%emt 0:00:26]} 16. Qb3 {[%emt 0:05:48]} Re8 {[%emt 0:04:12]} 17. c5 {[%emt 0:09:43]} Ndf6 {[%emt 0:01:04]} 18. Ng5 {[%emt 0:01:15]} Be6 {[%emt 0:09:33]} 19. Nxe6 {[%emt 0:00:54]} Rxe6 {[%emt 0:00:02]} 20. Bc1 {[%emt 0:02:51]} Qd7 {[%emt 0:03:24]} 21. Nd6 {[%emt 0:02:43]} Rxd6 {[%emt 0:00:21]} 22. cxd6 {[%emt 0:00:11]} Qxd6 {[%emt 0:00:07]} 23. d5 {[%emt 0:02:14]} Re8 {[%emt 0:05:30]} 24. Kh1 {[%emt 0:07:44]} Qc5 {[%emt 0:06:01]} 25. Ra2 {[%emt 0:01:36]} h5 {[%emt 0:00:48]} 26. Rc2 {[%emt 0:04:45]} Qb6 {[%emt 0:00:30]} 27. Qc4 {[%emt 0:01:40]} 1/2-1/2

[Event "Croatian 1A League 2022"]
[Site "Porec"]
[Date "2022.09.26"]
[Round "3.6"]
[White "Srbis, Jurica"]
[Black "Mrkonjic, Nenad"]
[Result "1-0"]
[ECO "B01"]
[WhiteElo "2442"]
[BlackElo "2347"]
[Annotator "RC"]
[PlyCount "117"]
[EventDate "2022.09.24"]
[EventType "team-tourn"]
[EventCountry "CRO"]
[SourceTitle "playchess.com"]
[Source "ChessBase"]
[SourceQuality "1"]
[TimeControl "40/5400+30:1800+30"]

1. e4 {[%emt 0:00:09]} d5 {[%emt 0:01:44]} 2. exd5 {[%emt 0:00:12]} Qxd5 {[%emt 0:00:04]} 3. Nc3 {[%emt 0:00:13]} Qa5 {[%emt 0:00:21]} 4. d4 {[%emt 0:00:23]} c6 {[%emt 0:00:10]} 5. Nf3 {[%emt 0:00:29]} Bg4 {[%emt 0:00:45]} 6. h3 {[%emt 0:04:23]} Bxf3 {[%emt 0:00:43]} 7. Qxf3 {[%emt 0:00:20]} e6 {[%emt 0:00:22]} 8. Bd2 {[%emt 0:08:11]} Qd8 {[%emt 0:07:13]} 9. O-O-O {[%emt 0:01:42]} Nf6 {[%emt 0:00:23]} 10. Qd3 {[%emt 0:23:20]} Bd6 {[%emt 0:01:48]} 11. g4 {[%emt 0:03:33]} Qc7 {[%emt 0:02:12]} 12. g5 {[%emt 0:05:11]} Nd5 {[%emt 0:01:42]} 13. Ne4 {[%emt 0:00:08]} Bf4 {[%emt 0:00:15]} 14. c4 {[%emt 0:01:59]} Ne7 {[%emt 0:06:13]} 15. Qf3 {[%emt 0:11:21]} Bxd2+ {[%emt 0:05:38]} 16. Rxd2 {[%emt 0:00:03]} O-O {[%emt 0:08:14]} 17. h4 {[%emt 0:01:27]} Nd7 {[%emt 0:03:46]} 18. h5 {[%emt 0:00:21]} Qa5 {[%emt 0:10:09]} 19. Bh3 {[%emt 0:06:13]} Nf5 {[%emt 0:14:56]} 20. Bxf5 {[%emt 0:01:29]} exf5 {[%emt 0:05:16]} 21. Nc3 {[%emt 0:00:28]} Rfe8 {[%emt 0:01:00]} 22. c5 {[%emt 0:00:55]} Rad8 {[%emt 0:01:27]} 23. Qxf5 {[%emt 0:00:26]} Re6 {[%emt 0:01:27]} 24. g6 {[%emt 0:01:02]} hxg6 {[%emt 0:05:54]} 25. hxg6 {[%emt 0:00:07]} Rxg6 {[%emt 0:00:02]} 26. f4 {[%emt 0:00:15]} Nf6 {[%emt 0:10:31]} 27. Rdh2 {[%emt 0:00:21]} Kf8 {[%emt 0:00:01]} 28. Rh8+ {[%emt 0:01:12]} Ng8 {[%emt 0:00:01]} 29. Qe4 {[%emt 0:04:10]} Qc7 {[%emt 0:00:57]} 30. f5 {[%emt 0:00:18]} Rf6 {[%emt 0:00:56]} 31. Qg4 {[%emt 0:01:35]} Qd7 {[%emt 0:04:26]} 32. Ne4 {[%emt 0:00:42]} Qxf5 {[%emt 0:02:24]} 33. Nxf6 {[%emt 0:00:55]} Qxf6 {[%emt 0:00:01]} 34. Qh5 {[%emt 0:03:56]} g6 {[%emt 0:00:19]} 35. Qh6+ {[%emt 0:01:08]} Qg7 {[%emt 0:00:55]} 36. Qxg7+ {[%emt 0:00:14]} Kxg7 {[%emt 0:00:02]} 37. R8h7+ {[%emt 0:00:07]} Kf8 {[%emt 0:00:13]} 38. Rf1 {[%emt 0:00:09]} Rd7 {[%emt 0:00:31]} 39. Kc2 {[%emt 0:00:32]} Re7 {[%emt 0:01:47]} 40. Kd3 {[%emt 0:00:00]} f5 {[%emt 0:00:00]} 41. Rfh1 {[%emt 0:02:37]} Rg7 {[%emt 0:02:42]} 42. d5 {[%emt 0:05:52]} cxd5 {[%emt 0:00:33]} 43. Kd4 {[%emt 0:00:06]} Nf6 {[%emt 0:04:17]} 44. Rxg7 {[%emt 0:02:11]} Kxg7 {[%emt 0:00:02]} 45. Ke5 {[%emt 0:01:39]} Ng4+ {[%emt 0:00:26]} 46. Kxd5 {[%emt 0:00:10]} g5 {[%emt 0:01:04]} 47. b4 {[%emt 0:00:38]} f4 {[%emt 0:00:27]} 48. b5 {[%emt 0:00:19]} Kf6 {[%emt 0:04:11]} 49. c6 {[%emt 0:00:23]} Ne3+ {[%emt 0:00:42]} 50. Ke4 {[%emt 0:01:47]} bxc6 {[%emt 0:05:48]} 51. bxc6 {[%emt 0:01:14]} Ke7 {[%emt 0:02:12]} 52. Rh7+ {[%emt 0:00:18]} Kd8 {[%emt 0:00:53]} 53. Rxa7 {[%emt 0:01:08]} Kc8 {[%emt 0:01:09]} 54. Rg7 {[%emt 0:00:28]} Nd1 {[%emt 0:04:03]} 55. Rxg5 {[%emt 0:01:48]} Nc3+ {[%emt 0:00:46]} 56. Kd4 {[%emt 0:00:59]} Nxa2 {[%emt 0:00:50]} 57. Kc4 {[%emt 0:01:09]} Kc7 {[%emt 0:02:02]} 58. Rg2 {[%emt 0:00:18]} Nc1 {[%emt 0:00:14]} 59. Rc2 {[%emt 0:00:05]} 1-0